[Event "8th Mersin Open 2024"]
[Site "Mersin"]
[Date "2024.11.11"]
[Round "2"]
[White "Manas, Eren"]
[Black "Jinan Jomon"]
[Result "0-1"]
[ECO "B90"]
[WhiteElo "2043"]
[BlackElo "2342"]
[Annotator "RC"]
[PlyCount "92"]
[EventDate "2024.11.10"]
[EventType "swiss"]
[EventCountry "TUR"]
[SourceTitle "playchess.com"]
[Source "ChessBase"]
[SourceQuality "1"]
[TimeControl "5400+30"]

1. e4 {[%emt 0:01:00]} c5 {[%emt 0:01:00]} 2. Nf3 {[%emt 0:00:30]} d6 {[%emt 0:00:00]} 3. d4 {[%emt 0:00:00]} cxd4 {[%emt 0:00:00]} 4. Nxd4 {[%emt 0:00:00]} Nf6 {[%emt 0:00:00]} 5. Nc3 {[%emt 0:00:00]} a6 {[%emt 0:00:00]} 6. a4 {[%emt 0:00:00]} e5 {[%emt 0:05:30]} 7. Nf3 {[%emt 0:00:30]} Be7 {[%emt 0:05:30]} 8. Bg5 {[%emt 0:01:30]} Be6 {[%emt 0:02:30]} 9. Bxf6 {[%emt 0:01:30]} Bxf6 {[%emt 0:00:30]} 10. Nd5 {[%emt 0:00:30]} Nd7 {[%emt 0:03:30]} 11. Bc4 {[%emt 0:03:30]} Rc8 {[%emt 0:00:30]} 12. Ba2 {[%emt 0:02:30]} O-O {[%emt 0:03:30]} 13. O-O {[%emt 0:00:30]} g6 {[%emt 0:05:30]} 14. Qd2 {[%emt 0:12:30]} Bg4 {[%emt 0:01:30]} 15. Ne1 {[%emt 0:22:30]} Bg5 {[%emt 0:01:30]} 16. Ne3 {[%emt 0:01:30]} Qb6 {[%emt 0:08:30]} 17. h3 {[%emt 0:10:30]} Be6 {[%emt 0:12:30]} 18. Bxe6 {[%emt 0:20:30]} fxe6 {[%emt 0:00:00]} 19. Rd1 {[%emt 0:00:30]} Rc6 {[%emt 0:12:00]} 20. Nf3 {[%emt 0:04:17]} Bf4 {[%emt 0:13:30]} 21. Qe2 {[%emt 0:03:27]} Qxb2 {[%emt 0:05:28]} 22. Rb1 {[%emt 0:02:09]} Qa3 {[%emt 0:03:32]} 23. Rxb7 {[%emt 0:02:45]} Nc5 {[%emt 0:00:33]} 24. Ra7 {[%emt 0:02:21]} Nxe4 {[%emt 0:03:04]} 25. Ng4 {[%emt 0:02:58]} Nc3 {[%emt 0:00:53]} 26. Qe1 {[%emt 0:01:41]} Qc5 {[%emt 0:05:43]} 27. Rb7 {[%emt 0:00:25]} h5 {[%emt 0:00:58]} 28. Ngh2 {[%emt 0:01:15]} e4 {[%emt 0:00:23]} 29. Nh4 {[%emt 0:00:23]} Rf6 {[%emt 0:02:06]} 30. Kh1 {[%emt 0:01:00]} d5 {[%emt 0:01:43]} 31. g3 {[%emt 0:01:00]} Bh6 {[%emt 0:01:35]} 32. g4 {[%emt 0:00:24]} d4 {[%emt 0:01:14]} 33. f4 {[%emt 0:01:40]} exf3 {[%emt 0:01:38]} 34. gxh5 {[%emt 0:00:33]} Qxh5 {[%emt 0:00:37]} 35. Ng4 {[%emt 0:00:41]} Rf4 {[%emt 0:00:26]} 36. Qg3 {[%emt 0:00:54]} Ne4 {[%emt 0:00:25]} 37. Nxh6+ {[%emt 0:00:56]} Qxh6 {[%emt 0:00:30]} 38. Qxg6+ {[%emt 0:00:30]} Qxg6 {[%emt 0:00:00]} 39. Nxg6 {[%emt 0:00:00]} Ng3+ {[%emt 0:01:35]} 40. Kg1 {[%emt 0:00:00]} Nxf1 {[%emt 0:00:04]} 41. Nxf4 {[%emt 0:00:26]} Ne3 {[%emt 0:00:32]} 42. Kf2 {[%emt 0:00:58]} e5 {[%emt 0:00:07]} 43. Nh5 {[%emt 0:00:05]} e4 {[%emt 0:00:14]} 44. a5 {[%emt 0:00:34]} Rxc2+ {[%emt 0:00:30]} 45. Kg3 {[%emt 0:00:04]} Rg2+ {[%emt 0:00:20]} 46. Kf4 {[%emt 0:00:30]} f2 {[%emt 0:00:30]} 0-1

[Event "8th Mersin Open 2024"]
[Site "Mersin"]
[Date "2024.11.11"]
[Round "2"]
[White "Gulsoy, Mustafa Alpago"]
[Black "Schekachikhin, Maksim"]
[Result "1-0"]
[ECO "B22"]
[WhiteElo "2040"]
[BlackElo "2353"]
[Annotator "RC"]
[PlyCount "87"]
[EventDate "2024.11.10"]
[EventType "swiss"]
[EventCountry "TUR"]
[SourceTitle "playchess.com"]
[Source "ChessBase"]
[SourceQuality "1"]
[TimeControl "5400+30"]

1. e4 {[%emt 0:01:00]} c5 {[%emt 0:01:00]} 2. d4 {[%emt 0:00:30]} cxd4 {[%emt 0:00:30]} 3. c3 {[%emt 0:00:30]} g6 {[%emt 0:13:30]} 4. cxd4 {[%emt 0:01:30]} d5 {[%emt 0:02:30]} 5. Nc3 {[%emt 0:00:30]} dxe4 {[%emt 0:01:30]} 6. Bc4 {[%emt 1:29:30]} Nf6 {[%emt 0:27:30]} 7. Qb3 {[%emt 0:00:00]} e6 {[%emt 0:00:30]} 8. d5 {[%emt 0:00:00]} exd5 {[%emt 0:02:30]} 9. Nxd5 {[%emt 0:00:00]} Be6 {[%emt 0:11:30]} 10. Nxf6+ {[%emt 0:00:00]} Qxf6 {[%emt 0:00:00]} 11. Qxb7 {[%emt 0:00:00]} Bxc4 {[%emt 0:03:00]} 12. Qc8+ {[%emt 0:00:00]} Qd8 {[%emt 0:01:30]} 13. Qxc4 {[%emt 0:00:00]} Bg7 {[%emt 0:12:52]} 14. Qxe4+ {[%emt 0:00:00]} Qe7 {[%emt 0:00:02]} 15. Qxe7+ {[%emt 0:00:00]} Kxe7 {[%emt 0:00:30]} 16. Bg5+ {[%emt 0:00:00]} f6 {[%emt 0:00:00]} 17. Be3 {[%emt 0:00:00]} Nc6 {[%emt 0:03:55]} 18. Ne2 {[%emt 0:00:00]} Rhc8 {[%emt 0:02:23]} 19. O-O {[%emt 0:00:00]} f5 {[%emt 0:00:15]} 20. Rab1 {[%emt 0:00:00]} Rab8 {[%emt 0:03:08]} 21. Bc5+ {[%emt 0:00:00]} Kf7 {[%emt 0:00:11]} 22. b4 {[%emt 0:00:00]} a6 {[%emt 0:01:41]} 23. Rfd1 {[%emt 0:00:00]} Rb7 {[%emt 0:00:04]} 24. Kf1 {[%emt 0:00:00]} Ne5 {[%emt 0:00:34]} 25. Rd5 {[%emt 0:00:00]} Nc4 {[%emt 0:02:52]} 26. Rc1 {[%emt 0:00:00]} Ne5 {[%emt 0:02:20]} 27. g3 {[%emt 0:00:00]} Nd7 {[%emt 0:01:48]} 28. a4 {[%emt 0:00:00]} Bb2 {[%emt 0:01:29]} 29. Rb1 {[%emt 0:01:39]} Bf6 {[%emt 0:00:19]} 30. Be3 {[%emt 0:01:08]} Ne5 {[%emt 0:00:34]} 31. Rd6 {[%emt 0:01:46]} Be7 {[%emt 0:02:37]} 32. Rxa6 {[%emt 0:01:13]} Bxb4 {[%emt 0:00:00]} 33. Kg2 {[%emt 0:00:16]} Nd3 {[%emt 0:01:00]} 34. Nf4 {[%emt 0:00:59]} Ne1+ {[%emt 0:01:10]} 35. Kh3 {[%emt 0:01:41]} g5 {[%emt 0:01:52]} 36. Nd5 {[%emt 0:01:16]} g4+ {[%emt 0:00:56]} 37. Kh4 {[%emt 0:00:01]} Nf3+ {[%emt 0:00:45]} 38. Kh5 {[%emt 0:00:03]} Rc4 {[%emt 0:00:00]} 39. Rf6+ {[%emt 0:02:10]} Ke8 {[%emt 0:00:07]} 40. a5 {[%emt 0:00:23]} f4 {[%emt 0:00:50]} 41. Bxf4 {[%emt 0:01:40]} Rc5 {[%emt 0:00:52]} 42. Rf5 {[%emt 0:00:08]} Rxa5 {[%emt 0:00:18]} 43. Rxb4 {[%emt 0:00:27]} Rxd5 {[%emt 0:01:02]} 44. Re4+ {[%emt 0:00:04]} 1-0

[Event "8th Mersin Open 2024"]
[Site "Mersin"]
[Date "2024.11.11"]
[Round "2"]
[White "Tavoosi Rad, Ramtin"]
[Black "Koksal, Ege"]
[Result "0-1"]
[ECO "A28"]
[WhiteElo "2038"]
[BlackElo "2316"]
[Annotator "RC"]
[PlyCount "100"]
[EventDate "2024.11.10"]
[EventType "swiss"]
[EventCountry "TUR"]
[SourceTitle "playchess.com"]
[Source "ChessBase"]
[SourceQuality "1"]
[TimeControl "5400+30"]

1. c4 {[%emt 0:03:00]} e5 {[%emt 0:01:00]} 2. Nc3 {[%emt 0:00:30]} Nf6 {[%emt 0:00:30]} 3. Nf3 {[%emt 0:00:00]} Nc6 {[%emt 0:00:30]} 4. e4 {[%emt 0:00:00]} Bb4 {[%emt 0:01:30]} 5. d3 {[%emt 0:00:30]} d6 {[%emt 0:00:30]} 6. a3 {[%emt 0:00:30]} Ba5 {[%emt 0:00:30]} 7. h3 {[%emt 0:00:30]} O-O {[%emt 0:01:30]} 8. Bg5 {[%emt 0:05:30]} Bxc3+ {[%emt 0:00:30]} 9. bxc3 {[%emt 0:00:30]} Qe7 {[%emt 0:00:00]} 10. Be2 {[%emt 0:00:30]} Nd8 {[%emt 0:00:00]} 11. Qd2 {[%emt 0:01:30]} Ne6 {[%emt 0:00:00]} 12. Rb1 {[%emt 0:09:30]} Nxg5 {[%emt 0:04:00]} 13. Qxg5 {[%emt 0:03:30]} h6 {[%emt 0:00:30]} 14. Qh4 {[%emt 0:00:30]} Re8 {[%emt 0:00:30]} 15. Nh2 {[%emt 0:03:30]} b6 {[%emt 0:08:30]} 16. O-O {[%emt 0:20:30]} Bd7 {[%emt 0:09:30]} 17. f4 {[%emt 0:15:30]} exf4 {[%emt 0:00:30]} 18. Qxf4 {[%emt 0:00:00]} Qe5 {[%emt 0:00:00]} 19. Qd2 {[%emt 0:05:00]} Qg5 {[%emt 0:01:00]} 20. Qxg5 {[%emt 0:06:30]} hxg5 {[%emt 0:00:30]} 21. Bf3 {[%emt 0:00:30]} Rad8 {[%emt 0:00:30]} 22. Rfe1 {[%emt 0:00:30]} Re5 {[%emt 0:00:30]} 23. Nf1 {[%emt 0:00:30]} g4 {[%emt 0:00:30]} 24. hxg4 {[%emt 0:00:30]} Nxg4 {[%emt 0:00:30]} 25. Bxg4 {[%emt 0:00:30]} Bxg4 {[%emt 0:00:30]} 26. Ne3 {[%emt 0:00:30]} Be6 {[%emt 0:00:30]} 27. Nd5 {[%emt 0:03:30]} Rd7 {[%emt 0:02:30]} 28. Nf4 {[%emt 0:02:22]} Ra5 {[%emt 0:00:30]} 29. Ra1 {[%emt 0:00:36]} a6 {[%emt 0:00:30]} 30. Reb1 {[%emt 0:03:27]} Rd8 {[%emt 0:08:30]} 31. a4 {[%emt 0:11:05]} Kf8 {[%emt 0:00:30]} 32. Rb2 {[%emt 0:01:45]} Ke7 {[%emt 0:00:30]} 33. Ne2 {[%emt 0:00:17]} Rh8 {[%emt 0:02:30]} 34. Nd4 {[%emt 0:01:01]} Rah5 {[%emt 0:00:00]} 35. Kf2 {[%emt 0:00:26]} a5 {[%emt 0:00:00]} 36. Nxe6 {[%emt 0:00:35]} fxe6 {[%emt 0:02:30]} 37. Rb5 {[%emt 0:00:30]} Rh1 {[%emt 0:01:30]} 38. Rbb1 {[%emt 0:00:24]} R1h5 {[%emt 0:06:30]} 39. Rf1 {[%emt 0:01:08]} R8h6 {[%emt 0:00:30]} 40. Rae1 {[%emt 0:00:38]} Rf6+ {[%emt 0:07:30]} 41. Kg1 {[%emt 0:00:30]} Rg6 {[%emt 0:00:30]} 42. Re3 {[%emt 0:02:11]} Rhg5 {[%emt 0:00:30]} 43. Rf2 {[%emt 0:00:00]} Rg3 {[%emt 0:00:30]} 44. Ref3 {[%emt 0:00:25]} Rxf3 {[%emt 0:00:30]} 45. Rxf3 {[%emt 0:00:00]} Rg5 {[%emt 0:00:30]} 46. Kf2 {[%emt 0:00:09]} d5 {[%emt 0:00:00]} 47. cxd5 {[%emt 0:02:24]} exd5 {[%emt 0:00:00]} 48. Rg3 {[%emt 0:00:30]} Rxg3 {[%emt 0:00:30]} 49. Kxg3 {[%emt 0:00:30]} b5 {[%emt 0:00:30]} 50. axb5 {[%emt 0:00:30]} a4 {[%emt 0:00:30]} 0-1

[Event "8th Mersin Open 2024"]
[Site "Mersin"]
[Date "2024.11.11"]
[Round "2"]
[White "Golshaani, Taha"]
[Black "Abbasi Abeluie, Mohammad Mehdi"]
[Result "0-1"]
[ECO "B12"]
[WhiteElo "2026"]
[BlackElo "2218"]
[Annotator "RC"]
[PlyCount "78"]
[EventDate "2024.11.10"]
[EventType "swiss"]
[EventCountry "TUR"]
[SourceTitle "playchess.com"]
[Source "ChessBase"]
[SourceQuality "1"]
[TimeControl "5400+30"]

1. e4 {[%emt 0:02:00]} c6 {[%emt 0:01:00]} 2. d4 {[%emt 0:00:30]} d5 {[%emt 0:00:30]} 3. e5 {[%emt 0:00:00]} c5 {[%emt 0:00:00]} 4. Nf3 {[%emt 0:00:00]} cxd4 {[%emt 0:02:00]} 5. Qxd4 {[%emt 0:00:30]} Nc6 {[%emt 0:04:30]} 6. Qf4 {[%emt 0:00:00]} e6 {[%emt 0:04:30]} 7. Bd3 {[%emt 0:00:00]} f6 {[%emt 0:10:30]} 8. Qh4 {[%emt 0:05:30]} f5 {[%emt 0:21:30]} 9. Qg3 {[%emt 0:04:30]} Qc7 {[%emt 0:12:30]} 10. h4 {[%emt 0:07:30]} Nb4 {[%emt 0:01:30]} 11. Nc3 {[%emt 0:04:30]} Ne7 {[%emt 0:05:30]} 12. Bd2 {[%emt 0:07:30]} a6 {[%emt 0:03:30]} 13. O-O {[%emt 0:05:30]} Nec6 {[%emt 0:00:30]} 14. Rfc1 {[%emt 0:12:30]} Nxd3 {[%emt 0:02:30]} 15. cxd3 {[%emt 0:00:00]} Qf7 {[%emt 0:00:30]} 16. Ne2 {[%emt 0:16:00]} Be7 {[%emt 0:16:48]} 17. Bg5 {[%emt 0:08:30]} Bd7 {[%emt 0:02:39]} 18. Nf4 {[%emt 0:03:30]} Bb4 {[%emt 0:03:26]} 19. h5 {[%emt 0:10:32]} h6 {[%emt 0:01:29]} 20. a3 {[%emt 0:02:24]} Ba5 {[%emt 0:00:48]} 21. Bh4 {[%emt 0:05:44]} O-O {[%emt 0:00:26]} 22. Ng6 {[%emt 0:00:24]} Rfc8 {[%emt 0:00:12]} 23. Rc2 {[%emt 0:01:47]} Be8 {[%emt 0:01:14]} 24. Rac1 {[%emt 0:01:12]} Qd7 {[%emt 0:00:01]} 25. Nf4 {[%emt 0:01:30]} Kh7 {[%emt 0:00:08]} 26. Ng6 {[%emt 0:00:11]} Bf7 {[%emt 0:01:51]} 27. b4 {[%emt 0:01:16]} Bb6 {[%emt 0:00:01]} 28. Nf4 {[%emt 0:00:43]} Qe8 {[%emt 0:00:08]} 29. Ne2 {[%emt 0:00:16]} Bxh5 {[%emt 0:00:30]} 30. Qf4 {[%emt 0:00:30]} Bxf3 {[%emt 0:00:30]} 31. Qxf3 {[%emt 0:00:12]} g5 {[%emt 0:00:30]} 32. Bg3 {[%emt 0:00:11]} f4 {[%emt 0:00:00]} 33. Bh2 {[%emt 0:01:02]} Nxe5 {[%emt 0:00:25]} 34. Qh3 {[%emt 0:00:07]} Rxc2 {[%emt 0:00:46]} 35. Rxc2 {[%emt 0:00:00]} g4 {[%emt 0:00:00]} 36. Qh4 {[%emt 0:00:01]} Bd8 {[%emt 0:00:00]} 37. Rc7+ {[%emt 0:00:00]} Bxc7 {[%emt 0:00:00]} 38. Bxf4 {[%emt 0:00:01]} Qf8 {[%emt 0:01:15]} 39. d4 {[%emt 0:00:07]} Ng6 {[%emt 0:00:00]} 0-1

[Event "8th Mersin Open 2024"]
[Site "Mersin"]
[Date "2024.11.11"]
[Round "2"]
[White "Ucoluk, Umut"]
[Black "Odeev, Handszar"]
[Result "0-1"]
[ECO "B50"]
[WhiteElo "2019"]
[BlackElo "2264"]
[Annotator "RC"]
[PlyCount "94"]
[EventDate "2024.11.10"]
[EventType "swiss"]
[EventCountry "TUR"]
[SourceTitle "playchess.com"]
[Source "ChessBase"]
[SourceQuality "1"]
[TimeControl "5400+30"]

1. e4 {[%emt 0:01:00]} c5 {[%emt 0:02:00]} 2. Nf3 {[%emt 0:00:00]} d6 {[%emt 0:00:30]} 3. c3 {[%emt 0:01:00]} Nf6 {[%emt 0:00:30]} 4. Be2 {[%emt 0:00:00]} g6 {[%emt 0:02:30]} 5. O-O {[%emt 0:01:00]} Bg7 {[%emt 0:00:30]} 6. Bb5+ {[%emt 0:00:00]} Nc6 {[%emt 0:01:30]} 7. Re1 {[%emt 0:08:00]} O-O {[%emt 0:01:30]} 8. h3 {[%emt 0:01:30]} Qb6 {[%emt 0:09:30]} 9. a4 {[%emt 0:12:30]} e5 {[%emt 0:10:30]} 10. Bc4 {[%emt 0:02:30]} Qd8 {[%emt 0:10:30]} 11. d3 {[%emt 0:06:30]} d5 {[%emt 0:00:00]} 12. exd5 {[%emt 0:00:00]} Nxd5 {[%emt 0:00:00]} 13. Nbd2 {[%emt 0:06:00]} b6 {[%emt 0:06:30]} 14. Ne4 {[%emt 0:06:30]} Na5 {[%emt 0:06:30]} 15. Ba2 {[%emt 0:38:51]} Kh8 {[%emt 0:17:30]} 16. Rb1 {[%emt 0:00:30]} Nc6 {[%emt 0:00:30]} 17. Qb3 {[%emt 0:00:30]} Ndb4 {[%emt 0:00:30]} 18. Bg5 {[%emt 0:00:30]} Qc7 {[%emt 0:03:30]} 19. cxb4 {[%emt 0:00:30]} Be6 {[%emt 0:00:00]} 20. Qd1 {[%emt 0:03:04]} Bxa2 {[%emt 0:00:00]} 21. Ra1 {[%emt 0:00:36]} Nxb4 {[%emt 0:04:30]} 22. b3 {[%emt 0:02:06]} f5 {[%emt 0:19:20]} 23. Nc3 {[%emt 0:01:06]} e4 {[%emt 0:00:06]} 24. Nxa2 {[%emt 0:01:13]} Nxd3 {[%emt 0:00:02]} 25. Rb1 {[%emt 0:01:06]} Nxe1 {[%emt 0:00:19]} 26. Nxe1 {[%emt 0:00:00]} f4 {[%emt 0:00:25]} 27. Qg4 {[%emt 0:01:08]} h6 {[%emt 0:01:37]} 28. Qh4 {[%emt 0:01:06]} Kh7 {[%emt 0:00:08]} 29. Rd1 {[%emt 0:00:24]} Rae8 {[%emt 0:02:25]} 30. g3 {[%emt 0:01:59]} fxg3 {[%emt 0:00:12]} 31. fxg3 {[%emt 0:02:02]} Qf7 {[%emt 0:00:48]} 32. Ng2 {[%emt 0:01:20]} Qxb3 {[%emt 0:00:12]} 33. Rd7 {[%emt 0:00:47]} Rf7 {[%emt 0:00:27]} 34. Nc1 {[%emt 0:00:37]} Qe6 {[%emt 0:00:44]} 35. Rxf7 {[%emt 0:00:30]} Qxf7 {[%emt 0:00:00]} 36. Ne2 {[%emt 0:00:24]} Qd5 {[%emt 0:00:55]} 37. Bf6 {[%emt 0:01:29]} Qd1+ {[%emt 0:00:24]} 38. Kh2 {[%emt 0:00:15]} Qxe2 {[%emt 0:00:37]} 39. Bxg7 {[%emt 0:00:30]} Kxg7 {[%emt 0:00:00]} 40. Qf4 {[%emt 0:00:00]} Qf3 {[%emt 0:00:39]} 41. Qc7+ {[%emt 0:00:22]} Qf7 {[%emt 0:00:30]} 42. Qd6 {[%emt 0:00:00]} e3 {[%emt 0:00:00]} 43. Qd3 {[%emt 0:00:21]} e2 {[%emt 0:00:25]} 44. Qc3+ {[%emt 0:00:00]} Qf6 {[%emt 0:00:12]} 45. Qe1 {[%emt 0:00:00]} Qf1 {[%emt 0:01:54]} 46. Qc3+ {[%emt 0:00:00]} Kh7 {[%emt 0:00:46]} 47. Ne1 {[%emt 0:00:00]} Rf8 {[%emt 0:00:54]} 0-1

[Event "8th Mersin Open 2024"]
[Site "Mersin"]
[Date "2024.11.11"]
[Round "2"]
[White "Mustafayev, Nihad"]
[Black "Ghanbarpour, Mahan"]
[Result "0-1"]
[ECO "D31"]
[WhiteElo "1961"]
[BlackElo "1803"]
[Annotator "RC"]
[PlyCount "182"]
[EventDate "2024.11.10"]
[EventType "swiss"]
[EventCountry "TUR"]
[SourceTitle "playchess.com"]
[Source "ChessBase"]
[SourceQuality "1"]
[TimeControl "5400+30"]

1. d4 {[%emt 0:01:00]} d5 {[%emt 0:01:00]} 2. Nf3 {[%emt 0:00:30]} e6 {[%emt 0:00:30]} 3. c4 {[%emt 0:00:00]} a6 {[%emt 0:00:30]} 4. cxd5 {[%emt 0:00:00]} exd5 {[%emt 0:00:00]} 5. Nc3 {[%emt 0:00:30]} c6 {[%emt 0:00:00]} 6. Bf4 {[%emt 0:01:30]} Bd6 {[%emt 0:00:00]} 7. Bg3 {[%emt 0:01:30]} Ne7 {[%emt 0:01:00]} 8. e3 {[%emt 0:01:30]} Bf5 {[%emt 0:04:30]} 9. Bd3 {[%emt 0:01:30]} O-O {[%emt 0:00:30]} 10. Bxf5 {[%emt 0:03:30]} Nxf5 {[%emt 0:02:30]} 11. Qd3 {[%emt 0:00:00]} Qc8 {[%emt 0:12:30]} 12. Na4 {[%emt 0:27:00]} Bb4+ {[%emt 0:07:30]} 13. Ke2 {[%emt 0:05:30]} Qe6 {[%emt 0:04:30]} 14. a3 {[%emt 0:03:30]} Be7 {[%emt 0:08:30]} 15. Nb6 {[%emt 0:03:30]} Ra7 {[%emt 0:00:00]} 16. Rac1 {[%emt 0:01:30]} Nd7 {[%emt 0:02:00]} 17. Nxd7 {[%emt 0:06:30]} Qxd7 {[%emt 0:01:30]} 18. Qb3 {[%emt 0:00:30]} Bd6 {[%emt 0:06:30]} 19. Rc2 {[%emt 0:04:30]} Raa8 {[%emt 0:03:30]} 20. Qd3 {[%emt 0:07:30]} Rfe8 {[%emt 0:06:30]} 21. Ne5 {[%emt 0:07:30]} Qe6 {[%emt 0:01:30]} 22. b4 {[%emt 0:02:41]} f6 {[%emt 0:03:30]} 23. Nf3 {[%emt 0:01:08]} Bf8 {[%emt 0:01:30]} 24. Rb1 {[%emt 0:02:59]} g5 {[%emt 0:03:30]} 25. a4 {[%emt 0:11:41]} Qd7 {[%emt 0:01:30]} 26. b5 {[%emt 0:01:29]} axb5 {[%emt 0:02:30]} 27. axb5 {[%emt 0:00:08]} Ra3 {[%emt 0:03:30]} 28. Rc3 {[%emt 0:00:50]} Ra2+ {[%emt 0:00:00]} 29. Kf1 {[%emt 0:00:15]} cxb5 {[%emt 0:02:00]} 30. Qxb5 {[%emt 0:02:36]} Qxb5+ {[%emt 0:00:30]} 31. Rxb5 {[%emt 0:00:30]} Ra1+ {[%emt 0:00:30]} 32. Ne1 {[%emt 0:01:49]} Nxd4 {[%emt 0:00:30]} 33. Rxb7 {[%emt 0:00:29]} Nf5 {[%emt 0:00:30]} 34. Rd3 {[%emt 0:00:57]} d4 {[%emt 0:02:30]} 35. Rb5 {[%emt 0:00:18]} dxe3 {[%emt 0:00:30]} 36. fxe3 {[%emt 0:00:32]} Nxe3+ {[%emt 0:00:30]} 37. Kf2 {[%emt 0:00:09]} Ng4+ {[%emt 0:00:00]} 38. Kf3 {[%emt 0:00:36]} Nxh2+ {[%emt 0:00:00]} 39. Bxh2 {[%emt 0:00:11]} Raxe1 {[%emt 0:00:30]} 40. Rb6 {[%emt 0:00:00]} Rf1+ {[%emt 0:01:30]} 41. Kg3 {[%emt 0:01:17]} f5 {[%emt 0:00:00]} 42. Rf6 {[%emt 0:00:29]} Bg7 {[%emt 0:01:00]} 43. Rc6 {[%emt 0:00:30]} Be5+ {[%emt 0:00:30]} 44. Kh3 {[%emt 0:00:00]} Rh1 {[%emt 0:00:30]} 45. g3 {[%emt 0:00:00]} Bg7 {[%emt 0:00:30]} 46. Rd2 {[%emt 0:00:19]} Rhe1 {[%emt 0:00:47]} 47. Rc7 {[%emt 0:00:30]} R1e2 {[%emt 0:00:46]} 48. Rcd7 {[%emt 0:01:00]} Bf6 {[%emt 0:00:40]} 49. Rxe2 {[%emt 0:01:11]} Rxe2 {[%emt 0:00:30]} 50. g4 {[%emt 0:00:00]} fxg4+ {[%emt 0:00:00]} 51. Kg3 {[%emt 0:00:25]} Be5+ {[%emt 0:00:20]} 52. Kxg4 {[%emt 0:00:00]} Rg2+ {[%emt 0:00:57]} 53. Kf5 {[%emt 0:00:00]} Bxh2 {[%emt 0:00:40]} 54. Kf6 {[%emt 0:00:00]} h5 {[%emt 0:00:18]} 55. Kg6 {[%emt 0:00:39]} Kf8 {[%emt 0:00:05]} 56. Kxh5 {[%emt 0:01:25]} Bf4 {[%emt 0:00:27]} 57. Rb7 {[%emt 0:00:45]} Rc2 {[%emt 0:00:32]} 58. Ra7 {[%emt 0:00:26]} Ke8 {[%emt 0:00:28]} 59. Kg4 {[%emt 0:01:03]} Rd2 {[%emt 0:00:30]} 60. Kf5 {[%emt 0:00:14]} Rd5+ {[%emt 0:00:30]} 61. Ke6 {[%emt 0:01:04]} Re5+ {[%emt 0:00:00]} 62. Kf6 {[%emt 0:00:00]} Kd8 {[%emt 0:00:00]} 63. Rg7 {[%emt 0:00:29]} Rd5 {[%emt 0:01:30]} 64. Ke6 {[%emt 0:00:30]} Rd6+ {[%emt 0:00:00]} 65. Kf5 {[%emt 0:00:17]} Rd7 {[%emt 0:00:00]} 66. Rg6 {[%emt 0:00:12]} Kc7 {[%emt 0:00:30]} 67. Ra6 {[%emt 0:00:36]} Rd6 {[%emt 0:00:00]} 68. Ra4 {[%emt 0:00:32]} Kc6 {[%emt 0:00:00]} 69. Ra8 {[%emt 0:00:00]} Kd5 {[%emt 0:00:30]} 70. Re8 {[%emt 0:00:06]} Kd4 {[%emt 0:00:00]} 71. Re4+ {[%emt 0:00:46]} Kd3 {[%emt 0:00:00]} 72. Re8 {[%emt 0:00:00]} Kd2 {[%emt 0:00:30]} 73. Kg4 {[%emt 0:00:36]} Rd3 {[%emt 0:00:30]} 74. Re6 {[%emt 0:00:04]} Rg3+ {[%emt 0:00:30]} 75. Kf5 {[%emt 0:00:30]} Re3 {[%emt 0:00:00]} 76. Ra6 {[%emt 0:00:13]} Ke2 {[%emt 0:00:00]} 77. Ra1 {[%emt 0:00:00]} Kf2 {[%emt 0:01:30]} 78. Kg4 {[%emt 0:00:20]} Rg3+ {[%emt 0:00:30]} 79. Kf5 {[%emt 0:00:00]} Kf3 {[%emt 0:00:00]} 80. Ra2 {[%emt 0:00:23]} Rg2 {[%emt 0:00:00]} 81. Ra1 {[%emt 0:00:17]} g4 {[%emt 0:00:30]} 82. Rf1+ {[%emt 0:00:13]} Kg3 {[%emt 0:01:30]} 83. Rxf4 {[%emt 0:00:10]} Kh3 {[%emt 0:00:30]} 84. Kg5 {[%emt 0:00:56]} Rg1 {[%emt 0:00:30]} 85. Rf8 {[%emt 0:01:00]} g3 {[%emt 0:00:30]} 86. Rh8+ {[%emt 0:02:19]} Kg2 {[%emt 0:00:00]} 87. Ra8 {[%emt 0:00:12]} Rb1 {[%emt 0:01:00]} 88. Kf4 {[%emt 0:00:35]} Rb3 {[%emt 0:00:30]} 89. Ra7 {[%emt 0:01:25]} Kh2 {[%emt 0:01:30]} 90. Rh7+ {[%emt 0:01:13]} Kg1 {[%emt 0:00:00]} 91. Rh3 {[%emt 0:01:22]} Kf2 {[%emt 0:00:00]} 0-1

[Event "8th Mersin Open 2024"]
[Site "Mersin"]
[Date "2024.11.11"]
[Round "2"]
[White "Taavoni, Rahim"]
[Black "Gunasti, Latife Yade"]
[Result "1/2-1/2"]
[ECO "A42"]
[WhiteElo "1958"]
[BlackElo "1792"]
[Annotator "RC"]
[PlyCount "92"]
[EventDate "2024.11.10"]
[EventType "swiss"]
[EventCountry "TUR"]
[SourceTitle "playchess.com"]
[Source "ChessBase"]
[SourceQuality "1"]
[TimeControl "5400+30"]

1. d4 {[%emt 0:07:00]} d6 {[%emt 0:01:00]} 2. c4 {[%emt 0:00:00]} g6 {[%emt 0:00:30]} 3. Nc3 {[%emt 0:00:00]} Bg7 {[%emt 0:00:30]} 4. e4 {[%emt 0:00:30]} Nc6 {[%emt 0:00:30]} 5. Be3 {[%emt 0:03:30]} e5 {[%emt 0:00:30]} 6. d5 {[%emt 0:00:30]} Nce7 {[%emt 0:00:30]} 7. g4 {[%emt 0:06:30]} f5 {[%emt 0:02:30]} 8. gxf5 {[%emt 0:01:30]} gxf5 {[%emt 0:00:00]} 9. f3 {[%emt 0:02:30]} Ng6 {[%emt 0:08:00]} 10. exf5 {[%emt 0:20:30]} Bxf5 {[%emt 0:03:30]} 11. Bd3 {[%emt 0:00:30]} N8e7 {[%emt 0:05:30]} 12. Ne4 {[%emt 0:13:30]} O-O {[%emt 0:08:30]} 13. Qc2 {[%emt 0:00:30]} Qd7 {[%emt 0:03:30]} 14. O-O-O {[%emt 0:01:30]} Nf4 {[%emt 0:07:30]} 15. Bxf4 {[%emt 0:05:30]} exf4 {[%emt 0:00:30]} 16. Ng5 {[%emt 0:09:30]} h6 {[%emt 0:04:30]} 17. Ne4 {[%emt 0:03:30]} Ng6 {[%emt 0:02:30]} 18. Ne2 {[%emt 0:00:30]} Nh4 {[%emt 0:04:30]} 19. Ng1 {[%emt 0:03:55]} Qe7 {[%emt 0:08:30]} 20. Kb1 {[%emt 0:03:00]} a5 {[%emt 0:09:30]} 21. Qf2 {[%emt 0:01:15]} a4 {[%emt 0:06:30]} 22. a3 {[%emt 0:00:03]} Rae8 {[%emt 0:02:30]} 23. Re1 {[%emt 0:01:55]} Ng6 {[%emt 0:03:31]} 24. Ne2 {[%emt 0:07:28]} Ne5 {[%emt 0:01:40]} 25. Nc1 {[%emt 0:00:02]} c6 {[%emt 0:01:08]} 26. Qf1 {[%emt 0:05:22]} Qc7 {[%emt 0:04:10]} 27. Rg1 {[%emt 0:00:35]} Re7 {[%emt 0:01:42]} 28. c5 {[%emt 0:01:50]} Bxe4 {[%emt 0:04:42]} 29. Bxe4 {[%emt 0:00:01]} cxd5 {[%emt 0:00:44]} 30. Bxd5+ {[%emt 0:00:30]} Kh8 {[%emt 0:00:00]} 31. cxd6 {[%emt 0:00:36]} Qxd6 {[%emt 0:01:35]} 32. Qb5 {[%emt 0:00:53]} Rd8 {[%emt 0:01:32]} 33. Be4 {[%emt 0:00:48]} Qf6 {[%emt 0:00:55]} 34. Re2 {[%emt 0:00:22]} Red7 {[%emt 0:01:34]} 35. Reg2 {[%emt 0:00:30]} Nc6 {[%emt 0:01:45]} 36. Qh5 {[%emt 0:01:19]} Rd2 {[%emt 0:01:25]} 37. Rxd2 {[%emt 0:00:39]} Rxd2 {[%emt 0:00:30]} 38. Qe8+ {[%emt 0:00:00]} Qf8 {[%emt 0:00:06]} 39. Qxf8+ {[%emt 0:00:55]} Bxf8 {[%emt 0:00:02]} 40. Nd3 {[%emt 0:00:10]} Bg7 {[%emt 0:00:37]} 41. Nxf4 {[%emt 0:01:05]} Rxb2+ {[%emt 0:00:30]} 42. Kc1 {[%emt 0:00:00]} Rxh2 {[%emt 0:00:54]} 43. Rd1 {[%emt 0:00:17]} Nd4 {[%emt 0:00:20]} 44. Ng6+ {[%emt 0:01:25]} Kg8 {[%emt 0:00:06]} 45. Kb1 {[%emt 0:00:00]} Kf7 {[%emt 0:01:15]} 46. Nf4 {[%emt 0:00:00]} Bf8 {[%emt 0:01:12]} 1/2-1/2